lending/lending_fUSD_20240705
["ID","MTS","AMOUNT","RATE_DAILY","PERIOD"]
[331254986,1720161151521,523.77808943,0.00011199,2]
[331254987,1720161157160,2727.13678015,0.00031602,34]
[331254990,1720161372082,150.0,0.00031602,30]
[331254994,1720161448626,160.0,0.00031602,30]
[331254995,1720161464851,201.26351181,0.00012314,2]
[331254997,1720161500730,653.31,0.0001153,2]
[331254998,1720161546243,8265.04463306,0.00011199,2]
[331255003,1720161685870,2884.00026217,0.00011199,2]
[331255004,1720161757011,2500.0,0.00031582,30]
[331255005,1720161765088,275.25862734,0.00012314,2]
[331255006,1720161772757,2500.0,0.00031582,30]
[331255007,1720161778389,2500.0,0.00031582,30]
[331255008,1720161781096,1263.2464365,0.00012302,2]
[331255010,1720161862760,962.57160002,0.00012302,2]
[331255011,1720161872097,2500.0,0.00031584,30]
[331255012,1720161879416,2500.0,0.00031584,30]
[331255013,1720161881638,1061.53799165,0.00012302,2]
[331255017,1720162013343,791.86312456,0.00012302,2]
[331255018,1720162014206,3858.59894812,0.00011199,2]
[331255036,1720162108706,250.70645294,0.00012314,2]
[331255037,1720162113488,526.70381718,0.00012314,2]
[331255038,1720162124439,155.5114203,0.00012314,2]
[331255039,1720162159917,620.64,0.00011243,2]
[331255040,1720162202715,308.93063115,0.00012314,2]
[331255048,1720162233498,-1000.0,0.0001316,2]
[331255052,1720162233508,-220.36,0.00013212,2]
[331255056,1720162233517,-161.7,0.00013213,2]
[331255059,1720162233527,-982.68223426,0.00013214,2]
[331255062,1720162233537,-23900.0,0.00013214,2]
[331255065,1720162233547,-250.0,0.00013234,2]
[331255068,1720162233556,-250.0,0.00013253,2]
[331255071,1720162233566,-150.0,0.00013265,2]
[331255074,1720162233576,-489.78,0.00013275,2]
[331255076,1720162233587,-155.0,0.00013472,2]
[331255078,1720162233596,-908.46751284,0.00013472,2]
[331255079,1720162233606,-227.17477303,0.00013472,2]
[331255081,1720162233616,-620.64,0.00013506,2]
[331255083,1720162233627,-150.0,0.00013507,2]
[331255085,1720162233636,-266.43574909,0.00013516,2]
[331255087,1720162233645,-430.47767915,0.00013516,2]
[331255089,1720162233657,-499.99,0.00013553,2]
[331255091,1720162233667,-301.32,0.00013699,2]
[331255093,1720162233677,-500.0,0.00013699,2]
[331255095,1720162233687,-1226.8607,0.000137,2]
[331255097,1720162233698,-228.67,0.00013714,2]
[331255099,1720162233707,-251.83,0.00013714,2]
[331255101,1720162233720,-299.99,0.00013714,2]
[331255103,1720162233731,-150.99,0.00013759,2]
[331255105,1720162233741,-1176.03875563,0.00013768,2]
[331255107,1720162233751,-9999.99,0.00013778,2]
[331255109,1720162233762,-150.0,0.00013787,2]
[331255111,1720162233771,-51452.624,0.00013788,2]
[331255113,1720162233781,-500.0,0.000138,2]
[331255115,1720162233791,-28578.9299,0.000138,2]
[331255117,1720162233804,-220.36,0.000139,2]
[331255119,1720162233813,-158.02759079,0.00013989,2]
[331255121,1720162233823,-155.5464279,0.00013989,2]
[331255122,1720162233832,-156.73006364,0.00013999,2]
[331255123,1720162233843,-474.28975858,0.00013999,2]
[331255124,1720162233852,-156.42802103,0.00013999,2]
[331255125,1720162233862,-500.0,0.00014219,2]
[331255126,1720162233872,-200.0,0.00014219,2]
[331255127,1720162233882,-1036.0,0.000146,2]
[331255128,1720162233893,-1007.0,0.000147,2]
[331255129,1720162233904,-1000.0,0.000147,2]
[331255130,1720162233913,-1514.0,0.000147,2]
[331255131,1720162233923,-13598.813,0.000148,2]
[331255132,1720162233933,-2549.5628,0.000148,2]
[331255133,1720162233943,-1000.0,0.00014805,2]
[331255134,1720162233953,-1581.09346,0.0001485,2]
[331255135,1720162233963,-1776.442,0.00014888,2]
[331255136,1720162233973,-24541.9123,0.00014889,2]
[331255137,1720162233983,-1000.0,0.00014889,2]
[331255138,1720162233992,-1766.7893,0.000149,2]
[331255139,1720162234002,-160.20384159,0.000149,2]
[331255140,1720162234012,-178.1,0.00014904,3]
[331255141,1720162234022,-47840.25886376,0.00014988,2]
[331255142,1720162234036,-1440.0,0.00014988,2]
[331255143,1720162234048,-400.00947706,0.00014988,2]
[331255144,1720162234061,-14540.82146118,0.00014988,2]
[331255145,1720162234070,-1599.5570622,0.00014988,2]
[331255146,1720162234080,-317.42017498,0.0001499,2]
[331255147,1720162234090,-292.33438899,0.00014999,2]
[331255148,1720162234101,-2152.16089145,0.00014999,2]
[331255149,1720162234113,-10731.2882,0.00014999,2]
[331255150,1720162234125,-6995.67743474,0.00014999,2]
[331255151,1720162234138,-1256.0721124,0.00014999,2]
[331255152,1720162234150,-409.18770388,0.00014999,2]
[331255153,1720162234162,-914.70934891,0.00014999,2]
[331255154,1720162234176,-787.72537109,0.00014999,2]
[331255155,1720162234190,-638.49582452,0.00014999,2]
[331255156,1720162234526,155.0,0.00012314,2]
[331255157,1720162239023,-2726.52291747,0.00014999,2]
[331255158,1720162239035,-6423.30224154,0.00014999,2]
[331255159,1720162239047,-1064.77281209,0.00014999,2]
[331255160,1720162239060,-26988.5,0.00014999,2]
[331255161,1720162240026,-286.3073085,0.00014999,2]
[331255163,1720162240038,-11863.60000034,0.00014999,2]
[331255166,1720162240051,-1394.62017604,0.00014999,2]
[331255168,1720162240064,-31832.74123149,0.00014999,2]
[331255170,1720162240076,-561.434,0.00014999,2]
[331255172,1720162240088,-166419.41851978,0.00014999,2]
[331255174,1720162240098,-1342.0604415,0.00014999,2]
[331255189,1720162240239,-166.7544676,0.00014999,2]
[331255192,1720162240252,-500.0,0.00014999,2]
[331255194,1720162240262,-152.61508556,0.00014999,2]
[331255196,1720162240274,-500.0,0.00014999,2]
[331255198,1720162240284,-396.03372468,0.00014999,2]
[331255200,1720162240294,-500.0,0.00014999,2]
[331255202,1720162240303,-500.0,0.00014999,2]
[331255204,1720162240313,-166573.87344062,0.00015,2]
[331255206,1720162240322,-267.91466227,0.00015,14]
[331255208,1720162240331,-6583.66494092,0.00015,2]
[331255210,1720162240343,-111260.06971568,0.00015,2]
[331255212,1720162240353,-10035.95556729,0.00015,2]
[331255214,1720162240363,-264.56686522,0.00015,2]
[331255216,1720162240372,-300.0,0.00015068,2]
[331255218,1720162240382,-240.0,0.00015069,2]
[331255220,1720162240392,-306.901,0.0001515,2]
[331255222,1720162240401,-306.901,0.0001515,2]
[331255224,1720162240415,-1581.09346,0.0001536,2]
[331255226,1720162240424,-228.67,0.00015428,2]
[331255228,1720162240434,-1175.22514018,0.00015625,5]
[331255230,1720162240444,-620.64,0.0001577,2]
[331255232,1720162240458,-170.01,0.00015831,2]
[331255234,1720162240468,-1581.09346,0.0001599,2]
[331255236,1720162240480,-2324.99,0.00016116,2]
[331255238,1720162240490,-394.224401,0.00016164,2]
[331255240,1720162240499,-300.0,0.00016438,2]
[331255242,1720162240509,-1000.0,0.0001645,2]
[331255244,1720162240519,-384.0,0.00016475,2]
[331255246,1720162240528,-170.01,0.00016484,2]
[331255248,1720162240538,-1760.19550154,0.00016566,2]
[331255250,1720162240548,-1581.09347,0.0001661,2]
[331255252,1720162240558,-394.224401,0.00016986,2]
[331255254,1720162240568,-10000.0,0.0001711,2]
[331255256,1720162240578,-170.01,0.00017137,2]
[331255258,1720162240588,-228.67,0.00017142,2]
[331255260,1720162240598,-2494.89645951,0.00017199,2]
[331255262,1720162240608,-1581.09346,0.0001724,2]
[331255264,1720162240617,-3970.33302245,0.00017533,2]
[331255266,1720162240627,-170.01,0.00017791,2]
[331255268,1720162240637,-394.224401,0.00017808,2]
[331255270,1720162240647,-1581.09346,0.0001786,2]
[331255272,1720162240658,-1120.16819577,0.0001788,2]
[331255274,1720162240668,-174.934313,0.00017996,2]
[331255276,1720162240680,-370.76260341,0.00018,2]
[331255278,1720162240690,-413.21120921,0.00018,2]
[331255280,1720162240700,-1464.87324699,0.00018,2]
[331255282,1720162240711,-614.0,0.00018006,2]
[331255284,1720162240723,-2439.0,0.00018021,2]
[331255286,1720162240733,-360.0,0.00018021,2]
[331255288,1720162240743,-1275.0,0.00018021,2]
[331255290,1720162240752,-1830.0,0.00018021,2]
[331255292,1720162240763,-1658.0,0.00018021,2]
[331255294,1720162240773,-166.0,0.00018021,2]
[331255296,1720162240782,-483.822,0.00018021,2]
[331255298,1720162240792,-502.066,0.00018021,2]
[331255300,1720162240804,-813.0,0.00018021,2]
[331255302,1720162240814,-736.329,0.00018021,2]
[331255304,1720162240823,-206.305,0.00018021,2]
[331255306,1720162240833,-260.383,0.00018021,2]
[331255308,1720162240842,-2375.0,0.00018021,2]
[331255310,1720162240852,-1305.0,0.00018021,2]
[331255312,1720162240862,-3224.0,0.00018021,2]
[331255314,1720162240872,-1988.0,0.00018021,2]
[331255316,1720162240882,-548.0,0.00018021,2]
[331255318,1720162240892,-425.63,0.00018021,2]
[331255320,1720162240902,-5177.0,0.00018021,2]
[331255322,1720162240913,-38243.0,0.00018021,2]
[331255324,1720162240923,-5811.0,0.00018021,2]
[331255326,1720162240932,-1199.0,0.00018021,2]
[331255328,1720162240942,-301.526,0.00018021,2]
[331255330,1720162240952,-1664.0,0.00018021,2]
[331255332,1720162240961,-150.257,0.00018021,2]
[331255333,1720162240971,-620.64,0.00018034,2]
[331255336,1720162240991,-12875.85865665,0.00018081,2]
[331255338,1720162241002,-7500.0,0.00018081,2]
[331255340,1720162241012,-1000.0,0.00018096,2]
[331255342,1720162241022,-326.27150879,0.00018096,2]
[331255345,1720162241044,-500.0,0.0001818,2]
[331255349,1720162241069,-179.74769853,0.0001818,2]
[331255352,1720162241089,-151.0,0.00018181,2]
[331255355,1720162241109,-151.528384,0.00018181,2]
[331255359,1720162241132,-151.0,0.00018181,2]
[331255362,1720162241153,-152.203621,0.00018181,2]
[331255365,1720162241177,-151.0,0.00018181,2]
[331255368,1720162241199,-200.413616,0.00018181,2]
[331255370,1720162241214,-151.0,0.00018181,2]
[331255373,1720162241231,-151.0,0.00018181,2]
[331255376,1720162241249,-151.0,0.00018181,2]
[331255379,1720162241270,-151.0,0.00018181,2]
[331255382,1720162241283,-151.0,0.00018181,2]
[331255385,1720162241300,-151.0,0.00018181,2]
[331255387,1720162241315,-151.0,0.00018181,2]
[331255390,1720162241333,-151.0,0.00018181,2]
[331255394,1720162241348,-212.735885,0.00018181,2]
[331255397,1720162241364,-151.0,0.00018181,2]
[331255401,1720162241387,-151.0,0.00018181,2]
[331255403,1720162241405,-151.0,0.00018181,2]
[331255406,1720162241421,-151.0,0.00018181,2]
[331255409,1720162241437,-151.0,0.00018181,2]
[331255411,1720162241453,-151.0,0.00018181,2]
[331255414,1720162241470,-151.0,0.00018181,2]
[331255415,1720162241486,-151.0,0.00018181,2]
[331255416,1720162241502,-151.0,0.00018181,2]
[331255417,1720162241517,-152.917006,0.00018181,2]
[331255418,1720162241533,-151.0,0.00018181,2]
[331255419,1720162241548,-151.0,0.00018181,2]
[331255420,1720162241565,-151.0,0.00018181,2]
[331255421,1720162241581,-151.0,0.00018181,2]
[331255422,1720162241595,-151.0,0.00018181,2]
[331255423,1720162241610,-151.0,0.00018181,2]
[331255424,1720162241626,-151.0,0.00018181,2]
[331255425,1720162241642,-151.0,0.00018181,2]
[331255426,1720162241657,-151.0,0.00018181,2]
[331255427,1720162241673,-151.0,0.00018181,2]
[331255428,1720162241688,-151.0,0.00018181,2]
[331255429,1720162241704,-284.267026,0.00018181,2]
[331255430,1720162241718,-151.0,0.00018181,2]
[331255431,1720162241736,-151.0,0.00018181,2]
[331255432,1720162241751,-221.729953,0.00018181,2]
[331255433,1720162241768,-221.729953,0.00018181,2]
[331255434,1720162241783,-221.729953,0.00018181,2]
[331255435,1720162241797,-221.729953,0.00018181,2]
[331255436,1720162241816,-151.0,0.00018181,2]
[331255437,1720162241831,-151.0,0.00018181,2]
[331255438,1720162241846,-151.0,0.00018181,2]
[331255439,1720162241862,-151.0,0.00018181,2]
[331255440,1720162241877,-151.0,0.00018181,2]
[331255441,1720162241892,-151.0,0.00018181,2]
[331255442,1720162241908,-151.0,0.00018181,2]
[331255443,1720162241923,-151.0,0.00018181,2]
[331255444,1720162241938,-151.0,0.00018181,2]
[331255446,1720162241953,-154.660248,0.00018181,2]
[331255448,1720162241968,-151.0,0.00018181,2]
[331255451,1720162241984,-151.0,0.00018181,2]
[331255452,1720162241998,-151.0,0.00018181,2]
[331255453,1720162242013,-151.0,0.00018181,2]
[331255454,1720162242029,-151.0,0.00018181,2]
[331255455,1720162242043,-151.0,0.00018181,2]
[331255456,1720162242059,-151.0,0.00018181,2]
[331255457,1720162242075,-151.553381,0.00018181,2]
[331255458,1720162242090,-151.0,0.00018181,2]
[331255459,1720162242104,-151.0,0.00018181,2]
[331255460,1720162242120,-151.0,0.00018181,2]
[331255461,1720162242136,-389.894481,0.00018181,2]
[331255462,1720162242151,-151.0,0.00018181,2]
[331255463,1720162242169,-151.0,0.00018181,2]
[331255464,1720162242186,-389.894481,0.00018181,2]
[331255465,1720162242200,-151.0,0.00018181,2]
[331255466,1720162242215,-151.0,0.00018181,2]
[331255467,1720162242231,-151.0,0.00018181,2]
[331255468,1720162242247,-235.781694,0.00018181,2]
[331255469,1720162242264,-235.781694,0.00018181,2]
[331255470,1720162242281,-151.0,0.00018181,2]
[331255471,1720162242294,-1212.440213,0.00018181,2]
[331255472,1720162242304,-251.134886,0.00018181,2]
[331255473,1720162242315,-1212.440213,0.00018181,2]
[331255474,1720162242325,-151.0,0.00018181,2]
[331255475,1720162242536,-151.0,0.00018181,2]
[331255476,1720162242563,-151.0,0.00018181,2]
[331255477,1720162242579,-151.0,0.00018181,2]
[331255478,1720162242590,-167.400931,0.00018181,2]
[331255479,1720162242600,-151.0,0.00018181,2]
[331255480,1720162242610,-151.0,0.00018181,2]
[331255481,1720162242620,-151.0,0.00018181,2]
[331255482,1720162242629,-174.666283,0.00018181,2]
[331255483,1720162242639,-174.666283,0.00018181,2]
[331255485,1720162242649,-151.0,0.00018181,2]
[331255486,1720162242662,-151.0,0.00018181,2]
[331255487,1720162242672,-151.0,0.00018181,2]
[331255488,1720162242681,-151.0,0.00018181,2]
[331255489,1720162242693,-151.0,0.00018181,2]
[331255490,1720162242703,-151.0,0.00018181,2]
[331255491,1720162242713,-2586.706301,0.00018181,2]
[331255492,1720162242727,-151.0,0.00018181,2]
[331255493,1720162242737,-2586.706301,0.00018181,2]
[331255494,1720162242747,-151.0,0.00018181,2]
[331255495,1720162242757,-620.444742,0.00018181,2]
[331255496,1720162242769,-248.105155,0.00018181,2]
[331255497,1720162242779,-620.444742,0.00018181,2]
[331255498,1720162242789,-151.0,0.00018181,2]
[331255499,1720162242801,-151.0,0.00018181,2]
[331255500,1720162242811,-151.0,0.00018181,2]
[331255501,1720162242821,-151.0,0.00018181,2]
[331255502,1720162242831,-210.585944,0.00018181,2]
[331255503,1720162242841,-151.0,0.00018181,2]
[331255504,1720162242850,-210.585944,0.00018181,2]
[331255505,1720162242860,-151.0,0.00018181,2]
[331255506,1720162242870,-151.0,0.00018181,2]
[331255507,1720162242879,-151.0,0.00018181,2]
[331255508,1720162242889,-151.0,0.00018181,2]
[331255509,1720162242899,-151.0,0.00018181,2]
[331255510,1720162242911,-191173.89548053,0.00018182,2]
[331255511,1720162243363,-1083.98,0.00018182,2]
[331255512,1720162243375,-777.16020434,0.00018182,2]
[331255525,1720162243919,-252.69347573,0.00015117,2]
[331255526,1720162243928,-812.54652427,0.0001711,2]
[331255527,1720162243940,-426.096,0.0001711,2]
[331255528,1720162243952,-8761.35747573,0.0001711,2]
[331255529,1720162243962,-25551.02531919,0.00018182,2]
[331255530,1720162243972,-170.01,0.00018444,2]
[331255531,1720162243982,-1543.0,0.000185,3]
[331255533,1720162243991,-12875.85865661,0.00018518,2]
[331255534,1720162244001,-154.13287421,0.00018592,2]
[331255535,1720162244011,-600.0,0.00018625,2]
[331255537,1720162244021,-394.224401,0.0001863,2]
[331255539,1720162244031,-167.300677,0.0001864,2]
[331255541,1720162244041,-500.0,0.00018754,2]
[331255543,1720162244051,-800.0,0.00018754,2]
[331255545,1720162244061,-2952.99426697,0.00018754,2]
[331255549,1720162244243,-47.00573303,0.00018754,2]
[331255550,1720162244254,-249.6,0.00018849,30]
[331255551,1720162244264,-228.67,0.00018856,2]
[331255552,1720162244273,-54.72426697,0.000189,2]
[331255553,1720162245885,-327.565824,0.00018021,2]
[331255558,1720162245898,-742.434176,0.00018021,2]
[331255560,1720162245907,-151.0,0.00018181,2]
[331255563,1720162245918,-151.0,0.00018181,2]
[331255566,1720162245928,-96.43573303,0.000189,2]
[331255568,1720162245938,-151.16,0.000189,2]
[331255570,1720162245947,-151.16,0.000189,2]
[331255572,1720162245956,-151.16,0.000189,2]
[331255573,1720162245966,-151.16,0.000189,2]
[331255574,1720162245975,-623.19345683,0.00018919,2]
[331255575,1720162245984,-623.19345683,0.00018919,2]
[331255577,1720162245994,-9701.09273304,0.00018955,2]
[331255581,1720162246757,-413.45446002,0.00018955,2]
[331255582,1720162246770,-2575.95445174,0.00018955,2]
[331255602,1720162247798,-185.35701181,0.00018955,2]
[331255606,1720162247809,-544.76386976,0.00018999,2]
[331255610,1720162247819,-3.1226389,0.00019,2]
[331255659,1720162249024,-545.12531448,0.00019,2]
[331255660,1720162249036,-263.46852115,0.00019,2]
[331255661,1720162249048,-288.36,0.00019,2]
[331255662,1720162249060,-1224.74,0.00019,2]
[331255663,1720162249071,-2675.18352547,0.00019,2]
[331255664,1720162249081,-1086.0,0.00019,3]
[331255665,1720162249090,-1000.52,0.00019,2]
[331255666,1720162249101,-1250.0,0.00019,2]
[331255667,1720162249111,-300.0,0.00019,2]
[331255668,1720162249120,-533.66826194,0.00019069,2]
[331255669,1720162249130,-167.300677,0.00019106,2]
[331255670,1720162249140,-503.87072805,0.00019177,2]
[331255671,1720162249149,-245.52,0.00019177,2]
[331255672,1720162249159,-2000.0,0.00019178,2]
[331255673,1720162249171,-3156.11,0.00019178,2]
[331255674,1720162249183,-5850.65,0.00019178,2]
[331255675,1720162249194,-301.32,0.00019178,2]
[331255676,1720162249204,-7005.38,0.00019178,2]
[331255677,1720162249214,-250.0,0.00019178,2]
[331255678,1720162249224,-369.10201211,0.00019299,2]
[331255679,1720162249233,-1000.0,0.000193,3]
[331255680,1720162249243,-800.0,0.00019302,2]
[331255681,1720162249252,-3000.0,0.00019302,2]
[331255682,1720162249262,-150.0,0.00019325,2]
[331255683,1720162249271,-255.67407275,0.0001935,2]
[331255684,1720162249281,-304.51864384,0.00019354,2]
[331255685,1720162249291,-524.43604053,0.00019389,2]
[331255686,1720162249300,-12875.85865661,0.00019393,2]
[331255687,1720162249309,-600.0,0.00019401,2]
[331255688,1720162249319,-1128.93444819,0.0001945,5]
[331255689,1720162249329,-96867.39134227,0.00019451,2]
[331255690,1720162249339,-205.27551127,0.00019451,2]
[331255691,1720162249348,-394.224401,0.00019452,2]
[331255692,1720162249358,-151.16,0.0001949,2]
[331255693,1720162249367,-1000.0,0.000195,4]
[331255694,1720162249377,-1000.0,0.000195,3]
[331255695,1720162249388,-1000.0,0.000195,3]
[331255696,1720162249397,-1016.0,0.000195,3]
[331255697,1720162249407,-2500.0,0.000195,2]
[331255698,1720162249420,-151.0,0.000195,2]
[331255699,1720162249429,-229.38218945,0.00019565,2]
[331255700,1720162249439,-445.67202854,0.00019565,2]
[331255701,1720162249449,-167.300677,0.00019572,2]
[331255702,1720162249457,-1000.0,0.000196,3]
[331255703,1720162249469,-151.0,0.000196,2]
[331255704,1720162249478,-281.2,0.000196,2]
[331255705,1720162249488,-151.0,0.000196,2]
[331255706,1720162249497,-177.944416,0.000196,2]
[331255707,1720162249507,-765.0,0.00019674,2]
[331255708,1720162249518,-1000.0,0.000197,3]
[331255709,1720162249528,-8956.91552876,0.000197,2]
[331255710,1720162249540,-4010.93057124,0.000197,2]
[331255711,1720162249550,-421.3347,0.000197,2]
[331255712,1720162249559,-151.0,0.000197,2]
[331255713,1720162249569,-151.0,0.000197,2]
[331255714,1720162249578,-151.0,0.000197,2]
[331255715,1720162249587,-151.0,0.000197,2]
[331255716,1720162249597,-151.0,0.000197,2]
[331255717,1720162249607,-151.0,0.000197,2]
[331255718,1720162249617,-447.1143,0.000197,2]
[331255719,1720162249626,-151.0,0.000197,2]
[331255720,1720162249636,-151.0,0.000197,2]
[331255721,1720162249645,-299.638432,0.000197,2]
[331255722,1720162249655,-210.585944,0.000197,2]
[331255723,1720162249664,-210.585944,0.000197,2]
[331255724,1720162249674,-151.0,0.000197,2]
[331255725,1720162249683,-151.0,0.000197,2]
[331255726,1720162249694,-1000.0,0.00019741,2]
[331255727,1720162249703,-151.16,0.0001979,2]
[331255728,1720162249713,-1000.0,0.000198,3]
[331255729,1720162249724,-198.883013,0.000198,2]
[331255730,1720162249736,-151.0,0.000198,2]
[331255731,1720162249745,-151.0,0.000198,2]
[331255732,1720162249755,-151.0,0.000198,2]
[331255733,1720162249765,-151.0,0.000198,2]
[331255734,1720162249776,-151.0,0.000198,2]
[331255735,1720162249786,-151.0,0.000198,2]
[331255736,1720162249795,-152.551406,0.000198,2]
[331255737,1720162249805,-151.0,0.000198,2]
[331255738,1720162249815,-151.0,0.000198,2]
[331255739,1720162249824,-152.346959,0.000198,2]
[331255740,1720162249834,-151.0,0.000198,2]
[331255741,1720162249843,-151.0,0.000198,2]
[331255742,1720162249853,-151.0,0.000198,2]
[331255743,1720162249862,-18.26873076,0.000198,2]
[331255744,1720162285579,500.0,0.00031584,30]
[331255746,1720162349353,160.0,0.00031584,30]
[331255749,1720162568936,150.0,0.00031587,30]
[331255751,1720162848393,1900.0,0.00025,60]
[331255752,1720162912585,1900.0,0.00024,60]
[331255753,1720163018421,194.92136017,0.00012928,2]
[331255772,1720163247228,160.0,0.00031597,30]
[331255774,1720163398867,2570.89118303,0.00012914,2]
[331255789,1720163432540,-854.16488114,0.00012914,2]
[331255790,1720163432552,-464.47486671,0.00012914,2]
[331255791,1720163432570,-1132.38722525,0.00012914,2]
[331255792,1720163432583,-1132.00614387,0.00012914,2]
[331255793,1720163432592,-2447.1638,0.00014788,2]
[331255794,1720163432602,-556.24,0.00014904,2]
[331255795,1720163432611,-3970.33302245,0.00015,2]
[331255796,1720163432621,-525.22145647,0.00015479,2]
[331255797,1720163432631,-1342.0604415,0.00015535,2]
[331255798,1720163432640,-500.0,0.00016137,2]
[331255799,1720163432650,-200.0,0.00016137,2]
[331255800,1720163432660,-300.0,0.00016698,2]
[331255801,1720163432669,-8214.06,0.00016699,2]
[331255802,1720163432679,-250.0,0.00016821,2]
[331255803,1720163432689,-334.3,0.00016916,2]
[331255804,1720163432699,-200.0,0.00016957,2]
[331255805,1720163432709,-228.67,0.00016993,2]
[331255806,1720163432718,-3313.91,0.00016998,2]
[331255807,1720163432728,-1673.87,0.00017024,2]
[331255808,1720163432738,-2704.74,0.00017024,2]
[331255809,1720163432747,-250.0,0.00017039,2]
[331255810,1720163432757,-499.99,0.00017039,2]
[331255811,1720163432766,-150.0,0.0001707,2]
[331255812,1720163432775,-23900.0,0.00017071,2]
[331255813,1720163432785,-1244.53,0.00017101,2]
[331255814,1720163432796,-200.0,0.00017129,2]
[331255815,1720163432806,-150.99,0.00017129,2]
[331255816,1720163432815,-556.24,0.00017167,2]
[331255817,1720163432824,-1000.0,0.00017234,2]
[331255818,1720163432834,-6861.04,0.00017234,2]
[331255819,1720163432843,-5162.97,0.00017262,2]
[331255820,1720163432852,-168.75,0.00017405,2]
[331255821,1720163432861,-172.37,0.00017411,2]
[331255822,1720163432871,-4796.1,0.00017452,2]
[331255823,1720163432881,-1070.0,0.00017603,2]
[331255824,1720163432890,-1664.0,0.00017603,2]
[331255825,1720163432900,-5811.0,0.00017603,2]
[331255826,1720163432910,-38243.0,0.00017603,2]
[331255827,1720163432919,-291.0,0.00017603,2]
[331255828,1720163432928,-5177.0,0.00017603,2]
[331255829,1720163432938,-1199.0,0.00017603,2]
[331255830,1720163432947,-2494.89645951,0.00017807,2]
[331255831,1720163432957,-626.0,0.00018,3]
[331255832,1720163432966,-1389.0,0.00018,3]
[331255833,1720163432975,-420.0,0.00018244,2]
[331255834,1720163432985,-195.18,0.00018491,3]
[331255835,1720163432994,-360.0,0.00018501,2]
[331255836,1720163433004,-1275.0,0.00018501,2]
[331255837,1720163433013,-1658.0,0.00018501,2]
[331255838,1720163433022,-1830.0,0.00018501,2]
[331255839,1720163433031,-444.0,0.00018501,2]
[331255840,1720163433042,-619.0,0.00018501,2]
[331255841,1720163433051,-449.0,0.00018501,2]
[331255842,1720163433061,-813.0,0.00018501,2]
[331255844,1720163433070,-150.0,0.00018501,2]
[331255846,1720163433080,-1305.0,0.00018501,2]
[331255847,1720163433089,-2375.0,0.00018501,2]
[331255848,1720163433098,-548.0,0.00018501,2]
[331255849,1720163433107,-283.0,0.00018501,2]
[331255850,1720163433117,-1988.0,0.00018501,2]
[331255851,1720163433131,-3224.0,0.00018501,2]
[331255852,1720163433140,-600.0,0.00018527,2]
[331255853,1720163433149,-500.0,0.00018754,2]
[331255854,1720163433159,-3000.0,0.00018754,2]
[331255855,1720163433170,-700.0,0.00018754,2]
[331255856,1720163433179,-1760.19550154,0.00018835,2]
[331255857,1720163433188,-228.8,0.00018849,30]
[331255858,1720163433198,-624.07838782,0.00018864,2]
[331255859,1720163433209,-323.1997,0.00018899,2]
[331255860,1720163433218,-3355.7269,0.00018899,2]
[331255862,1720163433228,-1860.323,0.00018899,2]
[331255863,1720163433238,-1100.4928,0.00018899,2]
[331255864,1720163433247,-155.0,0.00018899,2]
[331255865,1720163433257,-266.43574909,0.00018899,2]